fUST/lending_fUST_20250823
["ID","MTS","AMOUNT","RATE_DAILY","PERIOD"]
[380986226,1755924641028,-168.0,0.00027451,2]
[380986228,1755924641037,-291.91321535,0.00027452,30]
[380986230,1755924641047,-168.0,0.00027485,2]
[380986231,1755924641057,-168.0,0.00027545,2]
[380986233,1755924641067,-160.0,0.00027587,10]
[380986235,1755924641076,-291.91321535,0.00027589,30]
[380986236,1755924641086,-168.0,0.00027614,2]
[380986238,1755924641095,-1191.1344223,0.00027616,5]
[380986239,1755924641104,-150.39251112,0.0002762,5]
[380986241,1755924641114,-686.94659436,0.00027621,5]
[380986242,1755924641123,-1833.01225586,0.00027628,2]
[380986244,1755924641132,-587.0,0.00027696,2]
[380986246,1755924641142,-500.0,0.000277,2]
[380986248,1755924641151,-291.91321535,0.00027726,30]
[380986250,1755924641160,-151.0,0.00027728,2]
[380986252,1755924641170,-7557.46898449,0.00027769,2]
[380986254,1755924641179,-1200.0,0.00027808,7]
[380986256,1755924641188,-600.0,0.00027809,2]
[380986258,1755924641198,-291.91321535,0.00027836,30]
[380986260,1755924641207,-168.0,0.00027837,2]
[380986262,1755924641217,-168.0,0.0002784,2]
[380986264,1755924641228,-160.0,0.0002785,11]
[380986266,1755924641239,-168.0,0.00027888,2]
[380986268,1755924641249,-250.5222703,0.00027921,5]
[380986270,1755924641259,-168.0,0.00027934,7]
[380986272,1755924641270,-291.91321535,0.00027973,30]
[380986274,1755924641281,-529.05847148,0.00028,10]
[380986276,1755924641290,-168.0,0.00028003,2]
[380986278,1755924641301,-168.0,0.00028013,2]
[380986280,1755924641310,-151.0,0.000281,16]
[380986282,1755924641320,-291.91321535,0.0002811,30]
[380986284,1755924641329,-160.0,0.00028112,12]
[380986286,1755924641339,-199.0,0.00028184,30]
[380986288,1755924641349,-21409.2143439,0.00028224,2]
[380986289,1755924641358,-907.45748562,0.00028231,20]
[380986290,1755924641367,-9307.6873276,0.00028234,2]
[380986291,1755924641377,-291.91321535,0.00028247,30]
[380986292,1755924641390,-168.0,0.00028262,7]
[380986293,1755924641399,-199.0,0.0002827,10]
[380986294,1755924641408,-172.77903988,0.00028274,2]
[380986295,1755924641419,-1833.01225586,0.00028277,2]
[380986296,1755924641428,-925.48,0.000283,7]
[380986297,1755924641437,-1904.12,0.000283,7]
[380986298,1755924641447,-202.18,0.000283,30]
[380986299,1755924641457,-291.91321535,0.00028356,30]
[380986300,1755924641466,-500.0,0.0002837,2]
[380986301,1755924641476,-150.0,0.00028373,5]
[380986302,1755924641486,-501.60996112,0.00028373,10]
[380986303,1755924641495,-500.92621246,0.00028373,10]
[380986304,1755924641504,-2577.78,0.00028374,30]
[380986305,1755924641514,-160.0,0.00028375,13]
[380986306,1755924641523,-166.41268938,0.00028375,5]
[380986307,1755924641533,-449541.1622678,0.00028377,20]
[380986308,1755924641542,-150.0,0.00028377,2]
[380986309,1755924641552,-17485.32129787,0.00028377,20]
[380986507,1755924643811,-151.0,0.0002353,7]
[380986510,1755924643820,-151.0,0.0002353,7]
[380986511,1755924643829,-153.573598,0.0002353,7]
[380986513,1755924643838,-199.0,0.00025628,20]
[380986515,1755924643848,-1002.597299,0.000278,2]
[380986517,1755924643857,-1000.0,0.000283,2]
[380986519,1755924643866,-58004.49212561,0.00028377,20]
[380986818,1755924646886,-199.92297028,0.00024385,2]
[380986820,1755924646896,-4091.80249241,0.00028377,20]
[380986823,1755924646907,-1410.29848963,0.00028377,20]
[380987671,1755925152188,10000.0,0.00027397,120]
[380987681,1755925301656,214.0,0.000272,120]
[380987689,1755925402320,164.19971,0.00013699,2]
[380987702,1755925612777,5000.0,0.0002001,2]
[380987768,1755925837959,-164.19971,0.00020548,2]
[380987769,1755925837969,-2000.0,0.00022,7]
[380987771,1755925837978,-268.49148621,0.00023083,2]
[380987773,1755925837988,-160.85303124,0.00023183,2]
[380987775,1755925837997,-3779.59494786,0.00023893,4]
[380987776,1755925838007,-3220.63,0.000239,2]
[380987777,1755925838016,-203.7932291,0.00024892,2]
[380987778,1755925838025,-203.60550397,0.00024991,2]
[380987779,1755925838038,-376.14580871,0.0002503,2]
[380987781,1755925838048,-300.0,0.00025149,2]
[380987782,1755925838057,-1280.76687182,0.0002515,2]
[380987783,1755925838066,-150.1,0.00025632,7]
[380987784,1755925838075,-150.05,0.00025632,7]
[380987785,1755925838085,-150.1,0.00025732,7]
[380987786,1755925838095,-150.05,0.00025732,7]
[380987787,1755925838106,-150.1,0.00025832,7]
[380987788,1755925838115,-150.05,0.00025832,7]
[380987789,1755925838125,-276.90028288,0.00025885,2]
[380987790,1755925838136,-153.0,0.00025887,2]
[380987791,1755925838145,-153.0,0.00025887,2]
[380987792,1755925838155,-153.0,0.00025887,2]
[380987793,1755925838164,-153.0,0.00025887,2]
[380987794,1755925838174,-153.0,0.00025887,2]
[380987795,1755925838183,-153.0,0.00025887,2]
[380987796,1755925838193,-153.0,0.00025887,2]
[380987797,1755925838202,-153.0,0.00025887,2]
[380987798,1755925838212,-153.0,0.00025887,2]
[380987799,1755925838221,-153.0,0.00025887,2]
[380987800,1755925838231,-153.0,0.00025887,2]
[380987801,1755925838240,-153.0,0.00025887,2]
[380987802,1755925838250,-153.0,0.00025887,2]
[380987803,1755925838259,-153.0,0.00025887,2]
[380987804,1755925838269,-153.0,0.00025887,2]
[380987805,1755925838278,-153.0,0.00025887,2]
[380987806,1755925838288,-153.0,0.00025887,2]
[380987807,1755925838298,-153.51644454,0.00025931,7]
[380987808,1755925838307,-150.1,0.00025932,7]
[380987809,1755925838317,-150.05,0.00025932,7]
[380987810,1755925838326,-160.0,0.00025969,3]
[380987811,1755925838336,-500.0,0.00026006,2]
[380987812,1755925838345,-150.1,0.00026032,7]
[380987813,1755925838355,-150.05,0.00026032,7]
[380987814,1755925838364,-206.969,0.00026062,2]
[380987815,1755925838373,-221.725,0.00026062,2]
[380987816,1755925838383,-204.131,0.00026062,2]
[380987817,1755925838393,-261.481,0.00026062,2]
[380987818,1755925838402,-219.772,0.00026062,2]
[380987819,1755925838412,-973.0,0.00026062,2]
[380987820,1755925838421,-637.0,0.00026062,2]
[380987821,1755925838432,-2154.0,0.00026062,2]
[380987822,1755925838442,-500.0,0.00026062,2]
[380987823,1755925838451,-150.1,0.00026132,7]
[380987824,1755925838461,-150.05,0.00026132,7]
[380987825,1755925838469,-345.52468367,0.00026197,2]
[380987826,1755925838481,-159.44597578,0.00026197,2]
[380987827,1755925838493,-150.17,0.00026232,7]
[380987828,1755925838502,-150.05,0.00026232,7]
[380987829,1755925838511,-160.0,0.0002625,2]
[380987830,1755925838520,-150.05,0.00026332,7]
[380987831,1755925838529,-600.0,0.0002638,2]
[380987832,1755925838538,-300.0,0.00026396,20]
[380987833,1755925838549,-300.0,0.00026396,20]
[380987834,1755925838558,-150.05,0.00026432,7]
[380987835,1755925838567,-500.36952971,0.00026438,2]
[380987836,1755925838577,-160.0,0.00026451,4]
[380987837,1755925838587,-150.05,0.00026532,7]
[380987838,1755925838596,-150.05,0.00026632,7]
[380987839,1755925838605,-500.0,0.00026684,2]
[380987840,1755925838615,-525.76449451,0.00026712,2]
[380987841,1755925838635,-525.62621275,0.00026712,2]
[380987859,1755925840059,-48.60929274,0.00026712,2]
[380987860,1755925840068,-150.05,0.00026732,7]
[380987861,1755925840078,-199.0,0.00026749,20]
[380987862,1755925840087,-260.0,0.00026798,2]
[380987863,1755925840097,-150.05,0.00026832,7]
[380987864,1755925840106,-500.0,0.00026924,2]
[380987865,1755925840116,-500.0,0.00026924,2]
[380987866,1755925840126,-151.0,0.00026924,2]
[380987867,1755925840135,-500.0,0.00026924,2]
[380987868,1755925840144,-500.0,0.00026924,2]
[380987869,1755925840154,-500.0,0.00026924,2]
[380987870,1755925840163,-500.0,0.00026924,2]
[380987871,1755925840172,-500.0,0.00026924,2]
[380987872,1755925840181,-500.0,0.00026924,2]
[380987873,1755925840191,-500.0,0.00026924,2]
[380987874,1755925840200,-500.0,0.00026924,2]
[380987875,1755925840209,-500.0,0.00026924,2]
[380987876,1755925840219,-500.0,0.00026924,2]
[380987877,1755925840228,-150.05,0.00026932,7]
[380987878,1755925840237,-160.0,0.00026932,5]
[380987879,1755925840246,-93.07700156,0.00027027,2]
[380987880,1755925840258,-340.365,0.00027027,2]
[380987881,1755925840277,-166.55799844,0.00027027,2]
[380987882,1755925840287,-112.85366892,0.00027032,7]
[380987883,1755925840298,-37.19633108,0.00027032,7]
[380987884,1755925840308,-166.80755163,0.00027068,30]
[380987885,1755925840317,-162.17400853,0.00027068,30]
[380987886,1755925840327,-150.05,0.00027132,7]
[380987887,1755925840336,-500.0,0.0002714,2]
[380987889,1755925840345,-293.85068442,0.00027199,2]
[380987890,1755925840354,-510.49318116,0.00027211,2]
[380987891,1755925840364,-159.017839,0.00027222,6]
[380987892,1755925840374,-150.18564285,0.00027232,7]
[380987893,1755925840384,-162.17400853,0.00027233,30]
[380987894,1755925840393,-420.0,0.00027241,2]
[380987895,1755925840403,-166.80755163,0.00027288,30]
[380987896,1755925840412,-49.07823174,0.00027346,2]
[380987924,1755926236594,429.57,0.00027397,120]
[380987930,1755926424559,164.109955,0.00013699,2]
[380987955,1755926801515,1500.0,0.0002,10]
[380987965,1755927013469,158.0,0.0002,2]
[380987966,1755927013930,158.0,0.0002,2]
[380987967,1755927015015,158.0,0.0002,2]
[380987968,1755927016048,158.0,0.0002,2]
[380987969,1755927017903,158.0,0.0002,3]
[380987970,1755927018364,158.0,0.0002,3]
[380987971,1755927024260,158.0,0.0002,3]
[380987999,1755927032166,-164.109955,0.00020951,2]
[380988001,1755927032178,-150.84915085,0.00020951,2]
[380988003,1755927032187,-176.61575836,0.00021998,2]
[380988005,1755927032197,-300.0,0.00023899,2]
[380988007,1755927032210,-300.0,0.00023899,2]
[380988009,1755927032220,-300.0,0.00023899,2]
[380988011,1755927032230,-295.0,0.00023899,2]
[380988013,1755927032239,-188.0,0.00023899,2]
[380988015,1755927032249,-1963.21,0.000239,2]
[380988017,1755927032258,-3722.24,0.000239,2]
[380988019,1755927032267,-800.0,0.000239,2]
[380988021,1755927032276,-3749.43314251,0.000239,2]
[380988023,1755927032288,-238.72685749,0.000239,2]
[380988026,1755927032297,-178.87676412,0.000239,2]
[380988028,1755927032312,-1162.02484784,0.000239,2]
[380988030,1755927032323,-824.26587541,0.000239,2]
[380988063,1755927038116,-5264.08208575,0.000239,2]
[380988064,1755927038129,-376.14580871,0.00025043,2]
[380988065,1755927038138,-280.60520724,0.000251,2]
[380988066,1755927038147,-500.0,0.00025709,2]
[380988067,1755927038156,-521.95909531,0.0002585,2]
[380988068,1755927038167,-153.0,0.00025897,2]
[380988069,1755927038176,-153.0,0.00025897,2]
[380988070,1755927038185,-153.0,0.00025897,2]
[380988071,1755927038194,-153.0,0.00025897,2]
[380988072,1755927038203,-153.0,0.00025897,2]
[380988073,1755927038219,-153.0,0.00025897,2]
[380988074,1755927038228,-153.0,0.00025897,2]
[380988075,1755927038237,-153.0,0.00025897,2]
[380988076,1755927038247,-153.0,0.00025897,2]
[380988077,1755927038255,-153.0,0.00025897,2]
[380988078,1755927038265,-160.0,0.00025901,3]
[380988079,1755927038274,-420.0,0.0002592,2]
[380988080,1755927038283,-973.0,0.00026185,2]
[380988081,1755927038292,-637.0,0.00026185,2]
[380988082,1755927038301,-2154.0,0.00026185,2]
[380988083,1755927038310,-408.0,0.00026185,2]
[380988085,1755927038319,-666.0,0.00026257,2]
[380988087,1755927038328,-160.0,0.00026313,4]
[380988088,1755927038337,-500.0,0.00026561,2]
[380988089,1755927038347,-500.0,0.00026634,2]
[380988090,1755927038356,-199.0,0.00026649,20]
[380988091,1755927038365,-500.0,0.00026665,2]
[380988092,1755927038374,-1100.0,0.00026712,2]
[380988093,1755927038383,-500.0,0.00026721,2]
[380988094,1755927038392,-160.0,0.00026726,5]
[380988095,1755927038401,-160.0,0.00026763,2]
[380988096,1755927038411,-158.0,0.00027,20]
[380988097,1755927038419,-158.0,0.00027,20]
[380988098,1755927038428,-600.0,0.0002705,2]
[380988099,1755927038437,-160.0,0.00027138,6]
[380988100,1755927038446,-158.0,0.000273,30]
[380988101,1755927038455,-158.0,0.000273,30]
[380988102,1755927038467,-239.61430946,0.0002731,2]
[380988103,1755927038475,-500.0,0.00027391,2]
[380988104,1755927038485,-502.00106245,0.00027397,5]
[380988105,1755927038494,-194.60881022,0.00027425,30]
[380988106,1755927038504,-162.17400853,0.00027425,30]
[380988107,1755927038513,-357.46184589,0.00027487,2]
[380988108,1755927038522,-11567.41755507,0.00027487,7]
[380988109,1755927038531,-160.0,0.00027487,7]
[380988110,1755927038540,-160.0,0.00027487,7]
[380988111,1755927038550,-844.50316758,0.00027487,7]
[380988112,1755927038559,-232.37252479,0.00027487,7]
[380988113,1755927038568,-217.0334113,0.00027487,7]
[380988114,1755927038577,-168.0,0.00027487,2]
[380988115,1755927038586,-151.0,0.00027495,2]
[380988116,1755927038596,-500.0,0.00027495,2]
[380988117,1755927038605,-500.0,0.00027495,2]
[380988118,1755927038614,-500.0,0.00027495,2]
[380988119,1755927038624,-500.0,0.00027495,2]
[380988120,1755927038633,-500.0,0.00027495,2]
[380988121,1755927038642,-500.0,0.00027495,2]
[380988122,1755927038651,-500.0,0.00027495,2]
[380988123,1755927038660,-500.0,0.00027495,2]
[380988124,1755927038669,-500.0,0.00027495,2]
[380988125,1755927038678,-500.0,0.00027495,2]
[380988126,1755927038687,-500.0,0.00027495,2]
[380988127,1755927038696,-500.0,0.00027495,2]
[380988128,1755927038706,-369.22412603,0.00027512,2]
[380988129,1755927038716,-293.57014209,0.00027512,2]
[380988130,1755927038726,-1174.28056837,0.00027512,2]
[380988131,1755927038735,-262.26930144,0.00027512,2]
[380988132,1755927038748,-2379.86197739,0.00027512,2]
[380988133,1755927038757,-4376.85372655,0.00027512,2]
[380988134,1755927038776,-320.26854692,0.00027512,2]
[380988135,1755927038785,-396.85877259,0.00027512,2]
[380988136,1755927038797,-1577.37402284,0.00027512,2]
[380988147,1755927040152,-4997.10192,0.00027512,2]
[380988155,1755927043222,-1242.75558087,0.000239,2]
[380988178,1755927406594,164.00246,0.00013699,2]
[380988181,1755927489895,205.32211995,0.00020763,2]
[380988182,1755927554253,15836.13,0.00028378,60]
[380988197,1755927953385,16433.50577967,0.00028378,30]
[380988198,1755928113762,716.04,0.00028378,30]
[380988227,1755928232419,-348.02230637,0.00020763,2]
[380988229,1755928232429,-151.15445482,0.00021304,2]
[380988231,1755928232439,-164.00246,0.00021404,2]
[380988233,1755928232449,-2600.0,0.0002178,2]
[380988236,1755928232459,-1099.9875911,0.00022409,2]
[380988239,1755928232468,-2600.0,0.00022876,2]
[380988242,1755928232478,-626.912,0.00023412,20]
[380988245,1755928232490,-157.9026632,0.00023891,2]
[380988248,1755928232500,-1200.0,0.00023899,2]
[380988251,1755928232509,-1455.07441913,0.000239,2]
[380988254,1755928232519,-300.0,0.0002397,2]
[380988257,1755928232528,-300.0,0.0002397,2]
[380988260,1755928232539,-300.0,0.0002397,2]
[380988262,1755928232548,-300.0,0.0002397,2]
[380988266,1755928232558,-300.0,0.0002397,2]
[380988268,1755928232569,-1200.0,0.00023971,2]
[380988270,1755928232579,-2600.0,0.00023972,2]
[380988272,1755928232588,-2689.73667055,0.00023972,2]
[380988274,1755928232597,-567.8511255,0.00024031,2]
[380988275,1755928232606,-184.2340171,0.00024512,2]
[380988277,1755928232615,-376.14580871,0.00025049,2]
[380988280,1755928232625,-2600.0,0.00025068,2]
[380988281,1755928232634,-500.0,0.00025914,2]
[380988284,1755928232644,-153.0,0.00025914,2]
[380988285,1755928232653,-153.0,0.00025914,2]
[380988287,1755928232662,-153.0,0.00025914,2]
[380988289,1755928232671,-153.0,0.00025914,2]
[380988291,1755928232681,-153.0,0.00025914,2]
[380988292,1755928232690,-153.0,0.00025914,2]
[380988293,1755928232699,-153.0,0.00025914,2]
[380988295,1755928232709,-153.0,0.00025914,2]
[380988297,1755928232718,-153.0,0.00025914,2]
[380988299,1755928232727,-153.0,0.00025914,2]
[380988300,1755928232736,-300.0,0.00025995,2]
[380988302,1755928232749,-420.0,0.00025995,2]
[380988304,1755928232758,-300.0,0.00025995,2]
[380988306,1755928232767,-424.0,0.00025996,2]
[380988308,1755928232777,-344.17336166,0.00026129,2]
[380988310,1755928232786,-168.0,0.00026137,2]
[380988312,1755928232796,-500.0,0.00026157,2]
[380988314,1755928232805,-168.0,0.0002623,2]
[380988316,1755928232815,-500.0,0.00026272,2]
[380988318,1755928232825,-168.0,0.00026421,2]
[380988320,1755928232835,-500.0,0.00026432,2]
[380988322,1755928232849,-512.33198496,0.00026432,2]
[380988324,1755928232858,-443.63382076,0.00026432,2]
[380988326,1755928232867,-973.0,0.00026436,2]
[380988328,1755928232876,-408.0,0.00026436,2]
[380988330,1755928232885,-637.0,0.00026436,2]
[380988332,1755928232895,-2154.0,0.00026436,2]
[380988334,1755928232905,-336.23610955,0.00026473,7]
[380988336,1755928232914,-168.0,0.00026473,7]
[380988338,1755928232923,-158.0,0.000265,10]
[380988340,1755928232932,-168.43899707,0.000265,14]
[380988342,1755928232942,-500.0,0.00026538,2]
[380988344,1755928232951,-199.0,0.00026549,20]
[380988346,1755928232960,-509.31474272,0.00026591,2]
[380988348,1755928232969,-600.0,0.00026603,2]
[380988350,1755928232979,-168.0,0.0002665,2]
[380988352,1755928232988,-168.0,0.00026684,2]
[380988354,1755928232998,-159.017839,0.0002672,20]
[380988356,1755928233007,-159.017839,0.00026749,2]
[380988358,1755928233016,-515.57261833,0.00026871,2]
[380988360,1755928233027,-208.14401186,0.00026871,2]
[380988362,1755928233037,-159.017839,0.00026874,2]
[380988364,1755928233047,-168.0,0.00026886,2]
[380988366,1755928233057,-300.0,0.00026924,2]
[380988368,1755928233066,-304.0,0.00026924,2]
[380988370,1755928233076,-151.0,0.00026924,2]
[380988372,1755928233086,-151.0,0.00026924,2]
[380988374,1755928233095,-2030.296672,0.00026924,2]
[380988376,1755928233104,-500.0,0.00026924,2]
[380988378,1755928233114,-500.0,0.00026924,2]
[380988380,1755928233123,-500.0,0.00026924,2]
[380988382,1755928233133,-500.0,0.00026924,2]
[380988384,1755928233143,-500.0,0.00026924,2]
[380988386,1755928233152,-500.0,0.00026924,2]
[380988388,1755928233162,-500.0,0.00026924,2]
[380988390,1755928233172,-500.0,0.00026924,2]
[380988392,1755928233181,-500.0,0.00026924,2]
[380988394,1755928233191,-500.0,0.00026924,2]
[380988396,1755928233201,-500.0,0.00026924,2]
[380988398,1755928233211,-500.0,0.00026924,2]
[380988400,1755928233220,-300.0,0.00026964,20]
[380988402,1755928233230,-300.0,0.00026964,20]
[380988404,1755928233240,-300.0,0.00026964,20]
[380988406,1755928233249,-2105.41764886,0.00026979,2]
[380988408,1755928233259,-1000.0,0.0002698,2]
[380988410,1755928233269,-156.97,0.00027,7]
[380988412,1755928233279,-159.017839,0.00027,2]
[380988414,1755928233288,-2183.31810187,0.00027034,2]
[380988416,1755928233298,-168.0,0.00027045,2]
[380988418,1755928233308,-168.0,0.00027062,2]
[380988420,1755928233318,-207.35105376,0.00027068,30]
[380988422,1755928233328,-1000.0,0.00027086,2]
[380988424,1755928233337,-2264.10087164,0.00027089,2]
[380988426,1755928233348,-168.0,0.00027105,2]
[380988428,1755928233358,-2347.87260389,0.00027144,2]
[380988430,1755928233367,-207.35105376,0.00027178,30]
[380988432,1755928233376,-2434.74389024,0.00027199,2]
[380988434,1755928233386,-2524.82941417,0.00027254,2]
[380988436,1755928233395,-2600.0,0.0002726,2]
[380988438,1755928233406,-159.017839,0.0002727,20]
[380988440,1755928233417,-1829.92180579,0.00027309,2]
[380988442,1755928233426,-207.35105376,0.00027315,30]
[380988444,1755928233436,-3547.0,0.00027354,7]
[380988446,1755928233446,-159.017839,0.00027383,30]
[380988448,1755928233457,-207.35105376,0.00027452,30]
[380988450,1755928233467,-360.57958332,0.00027507,2]
[380988452,1755928233476,-951.23186373,0.00027507,2]
[380988454,1755928233487,-3801.12252747,0.00027507,2]
[380988456,1755928233501,-413.31450914,0.00027507,2]
[380988458,1755928233511,-1653.25803656,0.00027507,2]
[380988460,1755928233522,-3719.83058226,0.00027507,2]
[380988462,1755928233534,-6606.4191141,0.00027507,2]
[380988464,1755928233545,-168.0,0.00027524,2]
[380988466,1755928233555,-160.0,0.00027551,7]
[380988468,1755928233565,-600.0,0.00027584,2]
[380988470,1755928233576,-207.35105376,0.00027589,30]
[380988472,1755928233586,-159.017839,0.00027592,30]
[380988474,1755928233596,-168.0,0.00027696,2]
[380988476,1755928233607,-207.35105376,0.00027726,30]
[380988478,1755928233616,-600.0,0.00027784,2]
[380988479,1755928233626,-159.017839,0.00027801,30]
[380988481,1755928233637,-168.0,0.00027802,2]
[380988483,1755928233646,-159.017839,0.00027819,20]
[380988485,1755928233655,-207.35105376,0.00027836,30]
[380988487,1755928233666,-160.0,0.00027963,8]
[380988488,1755928233677,-190.40142835,0.00027971,2]
[380988489,1755928233686,-500.0,0.00027971,2]
[380988490,1755928233695,-535.41260118,0.00027971,2]
[380988491,1755928233705,-594.24026531,0.00027971,2]
[380988492,1755928233714,-500.0,0.00027971,2]
[380988493,1755928233723,-500.0,0.00027971,2]
[380988494,1755928233733,-500.0,0.00027971,2]
[380988495,1755928233744,-207.35105376,0.00027973,30]
[380988496,1755928233756,-13915.9893235,0.00028062,2]
[380988497,1755928233766,-1786.86853392,0.00028072,2]
[380988498,1755928233776,-6632.24697076,0.00028072,2]
[380988499,1755928233786,-207.35105376,0.0002811,30]
[380988500,1755928233796,-1786.8685339,0.00028124,2]
[380988501,1755928233807,-13915.9893235,0.00028151,2]
[380988502,1755928233817,-256.22,0.00028152,3]
[380988503,1755928233827,-768.68,0.00028152,3]
[380988504,1755928233837,-3163.35,0.00028161,2]
[380988505,1755928233847,-4672.70573363,0.00028162,2]
[380988506,1755928233879,-301.2680743,0.00027971,2]
[380988507,1755928233891,-198.7319257,0.00027971,2]
[380988508,1755928233901,-1404.42120862,0.00028162,2]
[380988509,1755928234033,-1138.80134258,0.00028162,2]
[380988510,1755928234044,-3991.30644725,0.00028162,2]
[380988511,1755928234060,-500.0,0.00027971,2]
[380988512,1755928234070,-15754.15719727,0.00028162,2]
[380988513,1755928234081,-662.27055404,0.00028162,2]
[380988517,1755928238453,-199.0,0.00026749,20]
[380988518,1755928238463,-500.0,0.00027971,2]
[380988519,1755928238472,-500.0,0.00027971,2]
[380988520,1755928238482,-500.0,0.00027971,2]
[380988521,1755928238494,-500.0,0.00027971,2]
[380988523,1755928238503,-500.0,0.00027971,2]
[380988524,1755928238512,-500.0,0.00027971,2]
[380988525,1755928238522,-500.0,0.00027971,2]
[380988527,1755928238533,-223.40441578,0.00027971,2]
[380988529,1755928238542,-14124.30548721,0.00028162,2]
[380988531,1755928238552,-178.73092295,0.00028171,2]
[380988532,1755928238562,-8908.42409072,0.00028172,2]
[380988533,1755928238574,-3400.0,0.00028172,2]
[380988534,1755928238584,-18269.11565775,0.00028172,2]
[380988543,1755928240516,-2013.05248907,0.00028172,2]
[380988544,1755928240632,-4753.93599997,0.00028172,2]
[380988545,1755928240643,-11596.0,0.00028172,2]
[380988567,1755928276645,773.37083694,0.00028378,30]
[380988576,1755928713536,163.877828,0.00013699,2]
[380988584,1755928869788,302.69733596,0.000189,2]
[380988585,1755928869819,302.69733596,0.00019467,2]
[380988586,1755928869854,302.69733596,0.00019089,2]
[380988587,1755928869917,302.69733596,0.00019278,2]
[380988588,1755928869967,302.69733596,0.00019656,2]
[380988589,1755928870028,516.37617667,0.00019845,4]
[380988606,1755929033729,-273.34181793,0.00020763,2]
[380988607,1755929137016,352.94503707,0.000199,2]
[380988610,1755929302251,341.18020224,0.000199,2]
[380988706,1755929436594,-341.18020223,0.00021627,2]
[380988708,1755929436603,-163.877828,0.00021918,2]
[380988710,1755929436613,-87.32095877,0.00023353,2]
[380988712,1755929436625,-253.85924346,0.00023353,2]
[380988714,1755929436634,-183.141763,0.00024848,2]
[380988716,1755929436643,-341.18020223,0.0002508,2]
[380988718,1755929436653,-305.48047134,0.00025191,2]
[380988719,1755929436662,-2154.0,0.00025874,2]
[380988721,1755929436671,-637.0,0.00025874,2]
[380988723,1755929436680,-153.0,0.00025972,2]
[380988724,1755929436689,-153.0,0.00025972,2]
[380988725,1755929436698,-153.0,0.00025972,2]
[380988726,1755929436707,-153.0,0.00025972,2]
[380988727,1755929436717,-500.0,0.00026153,2]
[380988728,1755929436726,-168.0,0.00026185,7]
[380988730,1755929436736,-500.0,0.00026187,2]
[380988732,1755929436745,-168.0,0.00026199,2]
[380988734,1755929436754,-168.0,0.00026475,7]
[380988735,1755929436763,-973.0,0.00026502,2]
[380988736,1755929436773,-500.0,0.00026568,2]
[380988737,1755929436782,-500.0,0.00026575,2]
[380988738,1755929436792,-151.0,0.00026646,2]
[380988739,1755929436801,-500.0,0.00026646,2]
[380988740,1755929436810,-500.0,0.00026646,2]
[380988741,1755929436819,-500.0,0.00026646,2]
[380988742,1755929436829,-500.0,0.00026646,2]
[380988743,1755929436838,-38.20110965,0.00026646,2]
[380988757,1755929438632,-461.79889035,0.00026646,2]
[380988758,1755929438641,-109.02381166,0.00026646,2]
[380988759,1755929438778,-390.97618834,0.00026646,2]
[380988760,1755929438788,-500.0,0.00026646,2]
[380988761,1755929438797,-500.0,0.00026646,2]
[380988762,1755929438806,-500.0,0.00026646,2]
[380988763,1755929438815,-445.94203936,0.00026646,2]
[380988764,1755929438825,-1733.12972061,0.00026646,2]
[380988765,1755929438854,-1886.44942545,0.00026646,2]
[380988766,1755929438865,-1038.4071728,0.00026646,2]